bitfinex/quotes_SOLUSD_20250724
["timestamp","ask_amount","ask_price","bid_price","bid_amount"]
[1753389736536,65.5598741,188.87,188.86,1e-08]
[1753389737645,43.06900711,188.84,188.83,1e-08]
[1753389737929,85.59522699,188.84,188.83,1e-08]
[1753389738315,86.26522699,188.84,188.83,1e-08]
[1753389739837,91.56071523,188.84,188.83,1e-08]
[1753389744718,94.32759673,188.84,188.83,1e-08]
[1753389746040,98.55290261,188.84,188.83,1e-08]
[1753389747545,17.06900711,188.83,188.82,1e-08]
[1753389747832,23.09522699,188.83,188.82,1e-08]
[1753389748235,42.78468397,188.81,188.8,1e-08]
[1753389748417,85.31090385,188.81,188.8,1e-08]
[1753389748612,86.01090385,188.81,188.8,1e-08]
[1753389749227,26.0,188.77,188.76,0.06]
[1753389749427,68.52621988,188.77,188.76,0.06]
[1753389749638,86.01090385,188.77,188.76,0.06]
[1753389749923,95.03330708,188.77,188.76,0.06]
[1753389750936,22.11090385,188.76,188.75,0.06]
[1753389751130,28.10863642,188.76,188.75,0.06]
[1753389751317,36.18759823,188.76,188.75,0.06]
[1753389752042,38.95125155,188.76,188.75,0.06]
[1753389753358,11.54261513,188.76,188.75,0.73]
[1753389753648,37.54261513,188.76,188.75,0.73]
[1753389755246,42.8403477,188.76,188.75,0.73]
[1753389755929,37.54261513,188.76,188.75,0.73]
[1753389756452,37.54261513,188.76,188.75,6.05621988]
[1753389756630,11.54261513,188.76,188.75,6.05621988]
[1753389758146,11.54261513,188.76,188.75,0.73]
[1753389758826,11.54261513,188.76,188.75,6.05621988]
[1753389766653,11.54261513,188.76,188.75,5.38621988]
[1753389766846,11.54261513,188.76,188.75,0.73]
[1753389767051,11.54261513,188.76,188.75,6.05621988]
[1753389767654,11.54261513,188.76,188.75,0.73]
[1753389768643,16.8403477,188.76,188.75,0.06]
[1753389769434,11.54261513,188.76,188.75,0.73]
[1753389769635,0.03,188.77,188.75,14.21901988]
[1753389769862,0.03,188.77,188.76,5.61054302]
[1753389770538,0.03,188.77,188.76,5.32621988]
[1753389770747,0.03,188.77,188.76,10.62395245]
[1753389771547,0.03,188.77,188.76,5.32621988]
[1753389773158,26.0,188.76,188.75,0.06]
[1753389773338,26.7,188.76,188.75,0.06]
[1753389773944,0.7,188.76,188.75,0.06]
[1753389774146,0.03,188.77,188.75,0.06]
[1753389774560,0.03,188.77,188.75,5.38621988]
[1753389774973,26.0,188.76,188.75,0.06]
[1753389779259,0.03,188.77,188.75,5.38621988]
[1753389779466,0.03,188.77,188.76,5.32621988]
[1753389781167,0.03,188.77,188.76,35.72595956]
[1753389782861,0.01,188.77,188.76,35.72595956]
[1753389783161,2.76185092,188.84,188.77,0.28432314]
[1753389783370,2.76185092,188.84,188.83,5.32621988]
[1753389785969,0.03,188.85,188.83,10.62198856]
[1753389786154,0.03,188.85,188.82,5.32621988]
[1753389786155,0.03,188.85,188.84,10.62170812]
[1753389786755,0.03,188.85,188.84,18.71493126]
[1753389786979,0.03,188.91,188.85,0.28432314]
[1753389787166,0.03,188.91,188.9,5.32621988]
[1753389788576,0.03,188.91,188.9,10.62002612]
[1753389788784,0.03,188.91,188.9,5.32621988]
[1753389789460,0.03,188.91,188.9,10.62002612]
[1753389789981,0.03,188.91,188.9,10.90434926]
[1753389791070,0.03,188.91,188.9,48.08434926]
[1753389791269,0.03,188.91,188.9,53.41056914]
[1753389793684,0.03,188.91,188.9,48.08434926]
[1753389795171,0.03,188.91,188.9,42.79054302]
[1753389796586,0.03,188.91,188.9,42.50621988]
[1753389797486,0.71,188.91,188.87,5.43671678]
[1753389797697,0.03,188.91,188.9,5.32621988]
[1753389800281,0.71,188.91,188.9,5.32621988]
[1753389800790,0.71,188.91,188.88,5.32621988]
[1753389800969,0.68,188.9,188.89,37.16]
[1753389803797,0.68,188.9,188.89,42.48621988]
[1753389804177,0.03,188.91,188.89,42.48621988]
[1753389804371,0.71,188.91,188.9,5.32621988]
[1753389804795,0.03,188.91,188.9,5.32621988]
[1753389804992,0.71,188.91,188.9,5.32621988]
[1753389805187,0.71,188.91,188.89,42.48621988]
[1753389805385,0.71,188.91,188.89,37.16]
[1753389805386,32.00352601,188.91,188.89,37.16]
[1753389805594,5.97380624,188.9,188.87,37.16]
[1753389805787,0.68,188.89,188.87,37.16]
[1753389806090,26.0,188.88,188.87,37.16]
[1753389806295,26.68,188.88,188.87,37.16]
[1753389808089,31.97436679,188.88,188.87,37.16]
[1753389808285,26.03,188.88,188.87,37.16]
[1753389808589,26.75,188.88,188.87,37.16]
[1753389810186,6.04436679,188.88,188.87,37.16]
[1753389811085,0.75,188.88,188.87,37.16]
[1753389811291,6.04436679,188.88,188.87,37.16]
[1753389811606,0.75,188.88,188.87,37.16]
[1753389812194,6.04436679,188.88,188.87,37.16]
[1753389812501,0.75,188.88,188.87,37.16]
[1753389813712,6.04436679,188.88,188.87,37.16]
[1753389814198,0.03,188.88,188.87,42.48621988]
[1753389815490,0.03,188.88,188.87,37.16]
[1753389815706,0.75,188.88,188.87,37.16]
[1753389816814,0.03,188.88,188.87,37.16]
[1753389817120,0.75,188.88,188.87,37.16]
[1753389819109,6.04436679,188.88,188.87,37.16]
[1753389819607,5.32436679,188.88,188.87,37.16]
[1753389819804,6.04436679,188.88,188.87,37.16]
[1753389820921,0.75,188.88,188.87,37.16]
[1753389821089,5.32436679,188.88,188.87,37.16]
[1753389821506,0.03,188.88,188.87,42.48621988]
[1753389821703,0.03,188.88,188.87,37.16]
[1753389821992,0.03,188.88,188.87,42.48621988]
[1753389827440,0.03,188.88,188.87,42.77054302]
[1753389827730,0.03,188.88,188.87,48.06519013]
[1753389828309,0.03,188.88,188.87,42.77054302]
[1753389830506,0.03,188.88,188.82,22.11090385]
[1753389830507,0.75,188.88,188.85,0.06]
[1753389830814,0.72,188.87,188.86,42.46621988]
[1753389831019,0.72,188.87,188.86,37.14]
[1753389831309,0.03,188.88,188.87,0.28432314]
[1753389831515,0.03,188.91,188.88,1.5388]
[1753389831729,0.03,188.91,188.9,10.90434926]
[1753389831895,0.03,188.91,188.9,16.23056914]
[1753389834323,0.03,188.92,188.91,0.28432314]
[1753389834511,0.03,188.92,188.91,48.6061155]
[1753389836232,0.03,188.92,188.91,53.89964151]
[1753389837715,0.03,188.95,188.91,53.89964151]
[1753389837918,0.03,188.95,188.94,5.61054302]
[1753389838120,0.03,188.95,188.94,42.75054302]
[1753389838421,0.03,188.95,188.94,48.04322852]
[1753389840127,0.03,188.95,188.94,42.75054302]
[1753389840335,0.03,188.95,188.88,1.5388]
[1753389840336,0.73,188.95,188.88,1.5388]
[1753389840506,43.51468397,188.95,188.87,11.46033971]
[1753389840708,17.48468397,188.94,188.88,5.32621988]
[1753389840931,0.7,188.93,188.88,5.32621988]
[1753389841126,6.02621988,188.93,188.89,37.14]
[1753389841431,26.0,188.91,188.9,5.32621988]
[1753389841612,26.7,188.91,188.9,5.32621988]
[1753389841813,26.7,188.91,188.89,42.46621988]
[1753389842024,0.03,188.95,188.9,5.32621988]
[1753389842227,0.73,188.95,188.94,5.32621988]
[1753389842413,0.73,188.95,188.94,42.46621988]
[1753389842612,0.73,188.95,188.94,37.14]
[1753389842613,6.02240539,188.95,188.94,37.14]
[1753389843832,0.73,188.95,188.94,37.14]
[1753389848707,0.73,188.95,188.94,42.46621988]
[1753389851716,0.73,188.95,188.94,42.52621988]
[1753389851717,0.03,188.95,188.94,42.52621988]
[1753389853037,0.03,188.95,188.94,47.81890538]
[1753389853544,0.03,188.95,188.94,48.10322852]
[1753389869151,0.03,188.95,188.94,10.96322852]
[1753389869342,0.03,188.95,188.94,48.08322852]
[1753389872741,0.75,188.95,188.94,0.06]
[1753389872939,0.75,188.95,188.94,37.18]
[1753389876265,0.75,188.95,188.9,0.06]
[1753389876266,24.35478936,188.95,188.9,0.06]
[1753389876460,16.78468397,188.91,188.9,0.06]
[1753389876844,17.50468397,188.91,188.9,0.06]
[1753389877335,22.79820998,188.91,188.9,0.06]
[1753389877534,0.72,188.91,188.9,0.06]
[1753389878345,6.01352601,188.91,188.9,0.06]
[1753389882470,28.12442986,188.91,188.9,0.06]
[1753389883582,0.72,188.91,188.9,0.06]
[1753389883750,32.01352601,188.91,188.9,0.06]
[1753389885175,26.0,188.92,188.9,5.38621988]
[1753389885364,8.05345854,188.93,188.91,42.44621988]
[1753389885563,8.05345854,188.93,188.91,37.12]
[1753389885959,0.72,188.92,188.91,37.12]
[1753389886155,8.05345854,188.93,188.91,42.44621988]
[1753389886156,2.76042722,188.93,188.91,42.44621988]
[1753389886456,31.32264353,188.95,188.91,42.44621988]
[1753389886977,0.72,188.94,188.91,42.44621988]
[1753389887171,0.72,188.94,188.9,0.06]
[1753389887476,0.72,188.94,188.91,37.12]
[1753389888572,5.29296564,188.93,188.91,37.12]
[1753389888875,26.0,188.91,188.9,5.38621988]
[1753389889073,26.0,188.91,188.9,42.50621988]
[1753389889285,0.72,188.91,188.9,42.50621988]
[1753389890372,6.01352601,188.91,188.9,0.06]
[1753389890678,6.01352601,188.91,188.9,37.18]
[1753389892464,6.01352601,188.91,188.9,0.06]
[1753389892775,6.01352601,188.91,188.9,37.18]
[1753389893076,22.79820998,188.91,188.9,0.06]
[1753389893278,54.12442986,188.91,188.9,0.06]
[1753389893464,28.12442986,188.91,188.9,0.06]
[1753389897686,32.25320289,188.91,188.9,0.06]
[1753389898973,42.78468397,188.87,188.86,0.06]
[1753389899178,48.11090385,188.87,188.86,0.06]
[1753389899385,43.44468397,188.87,188.86,0.06]
[1753389900291,26.0,188.87,188.86,0.06]
[1753389900590,26.66,188.87,188.86,0.06]
[1753389900890,31.95464711,188.87,188.86,0.06]
[1753389901880,48.73933108,188.87,188.86,0.06]
[1753389902469,54.06555096,188.87,188.86,0.06]
[1753389904387,48.73933108,188.87,188.86,0.06]
[1753389904593,54.06555096,188.87,188.86,0.06]
[1753389906776,56.82720728,188.87,188.86,0.06]
[1753389908695,45.54634029,188.87,188.86,0.06]
[1753389908892,22.0788232,188.89,188.86,5.38621988]
[1753389909097,17.44468397,188.89,188.86,5.38621988]
[1753389909873,26.0,188.87,188.86,5.38621988]
[1753389910073,26.66,188.87,188.86,0.06]
[1753389910275,48.77090385,188.87,188.86,0.06]
[1753389910495,54.06555096,188.87,188.86,0.06]
[1753389914788,31.29464711,188.87,188.86,0.06]
[1753389915110,26.0,188.87,188.86,5.38621988]
[1753389915306,26.0,188.87,188.86,0.06]
[1753389916204,26.0,188.87,188.86,5.38621988]
[1753389916502,2.79096774,188.9,188.86,5.45621988]
[1753389916693,2.79096774,188.9,188.88,5.32621988]
[1753389916896,26.0,188.89,188.88,5.32621988]
[1753389917286,26.0,188.89,188.87,5.32621988]
[1753389917480,26.0,188.88,188.86,5.38621988]
[1753389917681,26.66,188.88,188.86,0.06]
[1753389918299,26.0,188.88,188.87,5.32621988]
[1753389919115,26.0,188.89,188.87,5.32621988]
[1753389919319,0.03,188.9,188.88,5.32621988]
[1753389919486,0.03,188.9,188.89,5.32621988]
[1753389919682,26.03,188.9,188.89,5.32621988]
[1753389920085,0.03,188.9,188.89,5.32621988]
[1753389922599,0.03,188.9,188.89,5.39621988]
[1753389923111,0.03,188.9,188.89,10.69030638]
[1753389924611,0.03,188.9,188.89,5.39621988]
[1753389925520,0.03,188.9,188.89,5.32621988]
[1753389925889,0.03,188.9,188.89,42.44621988]
[1753389926992,0.03,188.9,188.89,47.81030638]
[1753389927587,0.03,188.9,188.89,48.09462952]
[1753389931516,0.03,188.9,188.89,48.02462952]
[1753389933123,0.03,188.9,188.89,48.09462952]
[1753389936514,0.03,188.9,188.89,42.44621988]
[1753389938033,0.71,188.9,188.86,0.06]
[1753389938202,0.71,188.9,188.87,5.32621988]
[1753389938402,0.03,188.9,188.89,5.32621988]
[1753389938639,0.03,188.9,188.89,42.44621988]
[1753389940097,0.71,188.9,188.89,42.44621988]
[1753389940514,0.03,188.9,188.89,42.44621988]
[1753389941014,0.03,188.9,188.89,47.74030638]
[1753389941210,0.03,188.9,188.89,47.81030638]
[1753389942631,0.03,188.9,188.89,42.44621988]
[1753389942826,0.03,188.9,188.89,5.32621988]
[1753389943017,0.03,188.9,188.89,37.12]
[1753389943332,0.03,188.9,188.89,42.44621988]
[1753389949116,0.71,188.9,188.89,42.44621988]
[1753389949731,0.03,188.9,188.89,47.81030638]
[1753389950445,0.03,188.9,188.89,48.09462952]
[1753389952519,0.03,188.9,188.89,61.4984494]
[1753389952717,0.03,188.94,188.89,61.4984494]
[1753389952914,0.03,188.94,188.93,5.32621988]
[1753389953119,0.03,188.94,188.93,42.44621988]
[1753389953315,0.03,188.94,188.93,47.73918552]
[1753389954548,0.03,188.94,188.93,48.09350866]
[1753389956442,0.03,188.94,188.93,42.69728878]
[1753389956641,0.03,188.94,188.93,48.02350866]
[1753389957436,0.03,188.94,188.93,42.73054302]
[1753389957736,0.03,188.94,188.93,48.02350866]
[1753389959045,0.03,188.94,188.93,48.09350866]
[1753389963437,0.03,188.94,188.93,48.02350866]
[1753389968968,0.03,188.94,188.93,48.09350866]
[1753389969257,0.03,188.94,188.93,48.02350866]
[1753389970157,0.03,188.95,188.93,48.09350866]
[1753389970363,0.03,188.95,188.94,5.92548843]
[1753389971284,0.03,188.95,188.94,11.50249707]
[1753389972155,0.1,188.96,188.95,0.28432314]
[1753389972356,0.03,188.98,188.97,0.28432314]
[1753389972555,0.03,188.98,188.97,48.63594742]
[1753389972755,0.03,188.99,188.97,48.63594742]
[1753389972972,0.03,189.02,188.99,0.28432314]
[1753389973180,0.03,189.02,189.01,5.32621988]
[1753389973372,0.71,189.02,189.01,10.61694523]
[1753389974071,0.03,189.02,189.01,10.61694523]
[1753389974557,0.03,189.02,189.01,10.68694523]
[1753389974883,0.03,189.02,189.01,10.61694523]
[1753389981493,0.71,189.02,188.98,0.52915652]
[1753389981700,0.71,189.02,189.01,5.32621988]
[1753389981904,0.71,189.02,189.01,42.40621988]
[1753389983099,0.71,189.02,189.01,5.32621988]
[1753389983401,0.71,189.02,189.01,37.08]
[1753389984894,6.00044545,189.02,189.01,37.08]
[1753389986288,29.6959493,189.02,188.93,5.43485312]
[1753389986483,0.68,189.01,188.96,5.32621988]
[1753389986681,0.68,189.01,188.97,37.08]
[1753389986882,6.00621988,189.01,188.97,37.08]
[1753389987098,0.68,189.0,188.97,37.08]
[1753389987403,5.29128525,188.99,188.97,37.08]
[1753389987803,0.66,188.98,188.97,37.08]
[1753389993830,5.95156524,188.98,188.97,37.08]
[1753389994912,0.66,188.98,188.97,37.08]
[1753389999625,5.95106097,189.0,188.97,42.40621988]
[1753389999824,0.66,188.99,188.97,42.40621988]
[1753390000417,0.66,189.01,188.98,5.32621988]
[1753390000617,26.03,189.02,188.99,37.08]
[1753390001337,0.66,189.01,188.99,37.08]
[1753390001538,0.03,189.02,189.0,5.32621988]
[1753390001842,26.03,189.02,189.01,42.40621988]
[1753390002437,0.03,189.02,189.01,42.40621988]
[1753390005052,0.69,189.02,189.01,37.08]
[1753390005458,5.98044545,189.02,189.01,37.08]
[1753390006355,0.69,189.02,189.01,42.40621988]
[1753390006559,0.03,189.02,189.01,42.40621988]
[1753390006851,0.69,189.02,189.01,42.40621988]
[1753390008949,0.03,189.02,189.01,42.40621988]
[1753390009859,0.03,189.02,189.01,47.76694523]
[1753390011353,0.03,189.02,189.01,48.5803409]
[1753390012971,0.03,189.02,189.01,42.40621988]
[1753390017738,0.69,189.02,189.01,37.08]
[1753390017938,0.69,189.02,189.01,42.40621988]
[1753390020254,0.69,189.02,189.01,37.08]
[1753390020550,0.69,189.02,189.01,42.40621988]
[1753390021450,0.69,189.02,189.01,37.08]
[1753390021845,5.98044545,189.02,189.01,37.08]
[1753390024759,0.69,189.02,189.01,37.08]
[1753390026245,0.69,189.02,189.01,42.40621988]
[1753390026840,0.03,189.02,189.01,42.40621988]
[1753390027038,0.69,189.02,189.01,42.40621988]
[1753390031346,0.03,189.02,189.01,42.40621988]
[1753390032353,0.03,189.02,189.01,47.76694523]
[1753390032560,0.03,189.02,189.01,48.05126837]
[1753390038662,0.03,189.02,189.01,48.5803409]
[1753390038983,0.03,189.02,189.01,47.98126837]
[1753390040079,0.03,189.02,189.0,87.9]
[1753390040295,0.66,189.01,189.0,87.9]
[1753390040579,0.66,189.01,189.0,130.28621988]
[1753390040773,0.66,189.01,189.0,37.06]
[1753390042183,5.95072535,189.01,189.0,37.06]
[1753390042367,11.27694523,189.01,189.0,37.06]
[1753390042680,28.0616292,189.01,189.0,37.06]
[1753390042886,16.78468397,189.0,188.99,37.06]
[1753390043081,22.11090385,189.0,188.99,37.06]
[1753390043266,48.77090385,189.0,188.95,0.06]
[1753390043466,5.32621988,188.97,188.96,37.06]
[1753390043673,5.98621988,188.97,188.95,37.12]
[1753390043874,0.66,188.96,188.95,37.12]
[1753390044185,5.95212531,188.96,188.95,37.12]
[1753390045681,11.27834519,188.96,188.95,37.12]
[1753390045886,41.29334245,188.96,188.91,0.06]
[1753390046072,22.11090385,188.92,188.89,0.06]
[1753390046267,5.32621988,188.9,188.89,0.06]
[1753390046466,5.98621988,188.91,188.89,0.06]
[1753390046669,0.66,188.9,188.89,0.06]
[1753390047663,17.44468397,188.9,188.89,0.06]
[1753390047886,28.06471009,188.9,188.89,0.06]
[1753390048193,26.0,188.87,188.86,37.12]
[1753390048369,26.0,188.87,188.86,0.06]
[1753390048370,48.79090385,188.87,188.86,0.06]
[1753390049590,54.08555096,188.87,188.86,0.06]
[1753390052273,16.78468397,188.86,188.85,0.06]
[1753390052577,23.07522699,188.86,188.85,0.06]
[1753390052977,25.83714334,188.86,188.85,0.06]
[1753390053776,31.13207079,188.86,188.85,0.06]
[1753390056406,42.78468397,188.83,188.82,0.06]
[1753390056586,48.11090385,188.83,188.82,0.06]
[1753390056888,48.79090385,188.83,188.82,0.06]
[1753390057279,54.08667253,188.83,188.82,0.06]
[1753390061096,186.08,188.85,188.82,0.06]
[1753390061097,0.68,188.85,188.82,0.06]
[1753390061398,16.78468397,188.84,188.82,0.06]
[1753390061693,0.68,188.83,188.82,0.06]
[1753390062675,5.97576868,188.83,188.82,0.06]
[1753390064498,54.08667253,188.83,188.82,0.06]
[1753390070399,54.08667253,188.83,188.82,1e-08]
[1753390070716,65.45099567,188.83,188.82,1e-08]
[1753390070912,48.76045265,188.83,188.82,1e-08]
[1753390071212,48.08045265,188.83,188.82,1e-08]
[1753390071408,54.08667253,188.83,188.82,1e-08]
[1753390072630,54.37099567,188.83,188.82,1e-08]
[1753390072912,65.47099567,188.83,188.82,1e-08]
[1753390073116,28.37099567,188.83,188.82,1e-08]
[1753390073293,31.13340496,188.83,188.82,1e-08]
[1753390075088,56.84908182,188.83,188.82,1e-08]
[1753390078296,56.16908182,188.83,188.82,1e-08]
[1753390078904,56.87908182,188.83,188.82,1e-08]
[1753390080107,31.16340496,188.83,188.82,1e-08]
[1753390081809,166.06900711,188.82,188.8,1e-08]
[1753390082033,59.49522699,188.81,188.8,1e-08]
[1753390082206,60.20522699,188.81,188.8,1e-08]
[1753390082601,22.82090385,188.81,188.8,1e-08]
[1753390083321,16.78468397,188.81,188.8,1e-08]
[1753390083633,22.08101361,188.81,188.8,1e-08]
[1753390085141,2.76240929,188.83,188.8,1e-08]
[1753390085346,0.1009574,188.82,188.81,5.98621988]
[1753390087827,0.1009574,188.82,188.81,7.64771988]
[1753390088216,0.1009574,188.82,188.81,12.94404952]
[1753390088407,0.0809574,188.82,188.81,12.94404952]
[1753390088734,0.0809574,188.82,188.81,18.2702694]
[1753390089926,0.0809574,188.82,188.81,18.55459254]
[1753390090315,0.0809574,188.82,188.81,25.16659254]
[1753390092424,0.03,188.83,188.81,25.16659254]
[1753390092627,0.03,188.87,188.83,0.28432314]
[1753390092821,0.03,188.87,188.86,5.32621988]
[1753390093024,0.03,188.87,188.86,5.98621988]
[1753390094449,0.03,188.87,188.86,11.28114733]
[1753390094645,0.01,188.87,188.86,19.46177047]
[1753390094829,0.03,188.89,188.87,0.28432314]
[1753390095158,0.03,188.89,188.88,5.61054302]
[1753390095558,0.03,188.89,188.88,6.27054302]
[1753390096133,0.03,188.89,188.88,43.35054302]
[1753390096955,0.03,188.89,188.88,48.64490981]
[1753390098959,0.03,188.91,188.89,0.28432314]
[1753390099158,0.03,188.91,188.9,12.12614352]
[1753390101147,0.03,188.91,188.9,17.41994976]
[1753390103268,0.03,188.91,188.9,20.00896565]
[1753390110372,0.03,188.91,188.9,57.06896565]
[1753390111572,0.03,188.93,188.92,26.28432314]
[1753390111758,0.03,188.93,188.92,68.67054302]
[1753390111961,0.03,188.93,188.92,69.9098676]
[1753390112772,0.03,188.93,188.92,75.20311341]
[1753390119265,0.03,188.95,188.93,0.28432314]
[1753390119469,0.03,188.95,188.94,43.88981157]
[1753390120853,0.03,188.95,188.94,49.18249707]
[1753390121153,0.03,188.95,188.94,48.47249707]
[1753390121358,0.03,188.95,188.94,49.18249707]
[1753390122185,0.03,188.95,188.94,48.47249707]
[1753390123392,0.03,188.95,188.94,49.18249707]
[1753390123759,0.03,188.95,188.94,48.47249707]
[1753390124260,0.03,188.95,188.94,42.36621988]
[1753390124474,0.03,188.95,188.94,47.65890538]
[1753390126999,0.03,188.95,188.94,48.65322852]
[1753390129699,0.03,188.99,188.98,0.28432314]
[1753390129903,0.03,188.99,188.98,48.50591942]
[1753390130102,0.03,188.99,188.98,49.21591942]
[1753390131270,0.03,188.99,188.98,54.50748466]
[1753390131702,0.03,188.99,188.98,49.18126478]
[1753390131875,0.03,188.99,188.98,48.47126478]
[1753390132369,0.71,188.99,188.98,5.32621988]
[1753390132697,0.71,188.99,188.98,42.34621988]
[1753390133282,0.71,188.99,188.98,47.63778512]
[1753390134671,0.03,188.99,188.98,37.02]
[1753390134872,0.71,188.99,188.98,37.02]
[1753390135471,0.71,188.99,188.93,0.06]
[1753390135668,0.71,188.99,188.94,42.34621988]
[1753390135874,0.71,188.99,188.95,5.32621988]
[1753390136091,0.71,188.99,188.96,37.02]
[1753390136772,6.0013715,188.99,188.96,37.02]
[1753390136974,5.3213715,188.99,188.96,37.02]
[1753390137173,0.68,188.98,188.96,37.02]
[1753390139191,5.97163221,188.98,188.96,37.02]
[1753390139397,5.29163221,188.98,188.96,37.02]
[1753390139596,0.66,188.97,188.96,37.02]
[1753390140376,5.95184526,188.97,188.96,37.02]
[1753390142077,11.27806514,188.97,188.96,37.02]
[1753390142489,16.78468397,188.96,188.93,0.06]
[1753390142699,22.11090385,188.94,188.93,0.06]
[1753390143084,22.77090385,188.94,188.93,0.06]
[1753390146307,42.78468397,188.91,188.89,0.06]
[1753390146608,27.40471009,188.9,188.89,0.06]
[1753390146915,28.06471009,188.9,188.89,0.06]
[1753390147111,28.34903323,188.9,188.87,0.06]
[1753390147426,49.70060385,188.88,188.87,0.06]
[1753390147820,50.36060385,188.88,188.87,0.06]
[1753390149209,55.65497064,188.88,188.87,0.06]
[1753390150404,58.41643194,188.88,188.87,0.06]
[1753390153928,58.41643194,188.88,188.85,0.06]
[1753390153929,16.78468397,188.86,188.85,0.06]
[1753390154121,48.39522699,188.86,188.8,1e-08]
[1753390154323,22.11090385,188.81,188.8,1e-08]
[1753390154533,27.40723349,188.81,188.8,1e-08]
[1753390154706,28.06723349,188.81,188.8,1e-08]
[1753390155324,54.06723349,188.81,188.8,1e-08]
[1753390155906,48.74101361,188.81,188.8,1e-08]
[1753390156242,54.06723349,188.81,188.8,1e-08]
[1753390156909,0.66,188.81,188.8,1e-08]
[1753390157106,26.66,188.83,188.8,1e-08]
[1753390157307,0.66,188.83,188.8,1e-08]
[1753390157913,5.32621988,188.81,188.8,1e-08]
[1753390158311,0.66,188.81,188.8,1e-08]
[1753390158821,22.77090385,188.81,188.8,1e-08]
[1753390159124,28.06723349,188.81,188.8,1e-08]
[1753390159320,22.74101361,188.81,188.8,1e-08]
[1753390160619,28.06723349,188.81,188.8,1e-08]
[1753390161215,22.74101361,188.81,188.8,1e-08]
[1753390161639,17.44468397,188.81,188.8,1e-08]
[1753390161836,0.66,188.81,188.8,1e-08]
[1753390162139,5.95632964,188.81,188.8,1e-08]
[1753390169441,28.06723349,188.81,188.8,1e-08]
[1753390170636,30.82963085,188.81,188.8,1e-08]
[1753390172524,25.50341097,188.81,188.8,1e-08]
[1753390173839,30.82963085,188.81,188.8,1e-08]
[1753390174857,51.50341097,188.81,188.8,1e-08]
[1753390175342,56.82963085,188.81,188.8,1e-08]
[1753390177960,51.50341097,188.81,188.8,1e-08]
[1753390179930,50.84341097,188.81,188.8,1e-08]
[1753390180349,2.76239736,188.81,188.8,1e-08]
[1753390181031,16.81468397,188.85,188.8,6.02621989]
[1753390181253,16.81468397,188.85,188.82,5.32621988]
[1753390181451,19.57597779,188.85,188.81,6.02621988]
[1753390181848,16.78468397,188.82,188.8,1e-08]
[1753390182259,22.08023359,188.84,188.8,6.02621989]
[1753390182457,28.79129382,188.85,188.8,6.02621989]
[1753390182458,34.08657636,188.85,188.81,6.02621988]
[1753390183256,34.08657636,188.85,188.82,0.7]
[1753390183565,34.08657636,188.85,188.82,5.32621988]
[1753390183932,28.79129382,188.85,188.83,0.7]
[1753390184133,0.03,188.85,188.84,6.02621988]
[1753390186141,0.03,188.85,188.81,37.06]
[1753390186365,0.03,188.85,188.83,5.32621988]
[1753390186859,0.73,188.85,188.82,5.32621988]
[1753390187061,0.03,188.85,188.82,5.32621988]
[1753390187363,0.73,188.85,188.82,5.32621988]
[1753390188652,5.29548824,188.84,188.82,5.32621988]
[1753390188830,6.02521469,188.85,188.82,5.32621988]
[1753390191076,0.03,188.85,188.84,5.32621988]
[1753390192983,0.03,188.85,188.83,5.32621988]
[1753390194251,0.03,188.85,188.83,6.02621988]
[1753390195971,0.03,188.85,188.83,5.32621988]
[1753390197382,6.02523179,188.85,188.82,5.32621988]